Cogmind - Beta 15 @@@ ROGUE MODE // 2025.08.19 @ 18:11:52 Player: Blackdima Result: Destroyed by HT-Q39(z) with Makeshift Axe Performance ------------- Evolutions (1) 500 Regions Visited (4) 800 Robots Destroyed (37) 185 Value Destroyed (820) 820 Prototype IDs (1) 20 Alien Tech Used (0) 0 Bonus (-13) -13 TOTAL SCORE: 2312 Bonus ------- Friendly Fire -13 Cogmind --------- Core Integrity 0/400 Matter 43/300 Energy 100/100 System Corruption 2% Temperature Cool (0) Movement Core (50) Location -7/Zion Parts ------- > --- POWER (1) -------- (None) > --- PROPULSION (2) --- (None) > --- UTILITY (3) ------ (None) > --- WEAPON (3) ------- (None) > --- INVENTORY (5) ---- Light Ion Engine Beamcaster Beamcaster Heavy Beamcaster Precision Grenade Launcher Peak State ------------ > --- POWER ------------ Light Deuterium Engine > --- PROPULSION ------- Titanium Leg Improved Titanium Leg > --- UTILITY ---------- Heat Sink Improved Light Armor Plating Improved Light Armor Plating > --- WEAPON ----------- Beamcaster Heavy Beamcaster Heavy Beamcaster > --- INVENTORY -------- Light Ion Engine Beamcaster Missile Launcher Heavy Missile Launcher Precision Grenade Launcher [Rating: 35] Favorites ----------- Power Light Deuterium Engine Engine Light Deuterium Engine Propulsion Titanium Leg Treads Light Treads Leg Titanium Leg Utility Improved Light Armor Plating Device Heat Sink Storage High-capacity Matter Pod Protection Improved Light Armor Plating Weapon Beamcaster Energy Gun Beamcaster Energy Cannon Beam Cannon Ballistic Gun Heavy Assault Rifle Launcher Grenade Launcher Build | -11 -10 -9 -9 -7 ------- Run | Yrd Mat Mat Min Zio Slots Evolved 2 | . . 2 . . Power . | . . . . . Propulsion . | . . . . . Utility 1 | . . 1 . . Weapon 1 | . . 1 . . Parts Attached 44 | 7 9 15 4 9 Power 4 | 1 . 1 2 . Engine 4 | 1 . 1 2 . Core . | . . . . . Reactor . | . . . . . Propulsion 8 | 3 . 4 . 1 Treads 2 | 2 . . . . Leg 6 | 1 . 4 . 1 Wheel . | . . . . . Hover . | . . . . . Flight . | . . . . . Utility 11 | 1 4 3 2 1 Device 5 | . 2 3 . . Storage 2 | 1 1 . . . Processor . | . . . . . Hackware . | . . . . . Protection 4 | . 1 . 2 1 Artifact . | . . . . . Weapon 21 | 2 5 7 . 7 Energy Gun 10 | 2 1 3 . 4 Energy Cannon 3 | . . 3 . . Ballistic Gun 1 | . . 1 . . Ballistic Cannon . | . . . . . Launcher 7 | . 4 . . 3 Special Weapon . | . . . . . Impact Weapon . | . . . . . Slashing Weapon . | . . . . . Piercing Weapon . | . . . . . Special Melee Weapon . | . . . . . Unidentified Prototypes 1 | . . . . 1 Parts Lost 16 | . 1 5 . 10 Power 2 | . . 1 . 1 Propulsion 2 | . . . . 2 Utility 6 | . . 2 . 4 Weapon 6 | . 1 2 . 3 Highest Loss Streak 10 | . 1 3 . 10 To Critical Strikes . | . . . . . Average Backups 4 | 3 3 2 3 4 Power . | . 1 . . 1 Propulsion . | 1 1 . . . Utility . | . . . . . Weapon 2 | 1 1 1 2 3 Tool/Special . | . . . . . Unused Backups 4 | . . 1 . 3 Power . | . . . . . Propulsion 1 | . . 1 . . Utility . | . . . . . Weapon 3 | . . . . 3 Tool/Special . | . . . . . Average Slot Usage (%) 96 | . 98 89 91 97 Engine 11 | . 14 10 11 10 Treads 6 | . 28 1 . . Leg 16 | . . 20 22 21 Device 9 | . 5 9 11 10 Storage 6 | . 16 11 9 . Protection 13 | . 4 6 4 21 Energy Gun 20 | . 18 19 . 25 Energy Cannon 5 | . . 5 33 3 Launcher 4 | . 8 3 . 2 Peak Build Rating 35 | 6 9 21 19 35 Average Rating 21 | 4 7 16 13 30 On Entrance 9 | . 6 7 16 19 Naked Turns 6 | . . . . 6 Heaviest Build 29 | 14 18 21 21 29 Greatest Support 40 | 40 40 40 34 37 Greatest Overweight (x) 1 | . . 1 . . Average Overweight (x) . | . . . . . Largest Inventory Capacity 8 | 8 8 5 5 5 Average Capacity 5 | 6 5 5 5 5 Most Carried 5 | 5 5 5 5 5 Average Carried 4 | 4 3 2 3 4 Final Capacity 8 | 8 5 5 5 5 Final Carried 5 | 4 4 2 4 5 Class Distribution -------------------- 52% | Scavenger-Tank 26% | Mutant 11% | Gunner 9% | Tank Dominant Class ---------------- Mutant | -10/Materials Tank | -9/Materials Gunner | -9/Mines Scavenger-Tank | -7/Zion Resources | -11 -10 -9 -9 -7 ----------- Run | Yrd Mat Mat Min Zio Matter Collected 887 | 211 299 69 224 84 Remotely . | . . . . . Salvage Created 845 | . 305 220 200 120 Parts 67 | . 23 23 9 12 Haulers Intercepted . | . . . . . Recyclers Shooed . | . . . . . Parts Field Recycled . | . . . . . Retrieved Matter . | . . . . . Parts Self-Destructed . | . . . . . Prevented . | . . . . . Kills | -11 -10 -9 -9 -7 ------- Run | Yrd Mat Mat Min Zio Combat Hostiles Destroyed 23 | . 11 7 4 1 Guns 6 | . 3 3 . . Cannons 3 | . . . 3 . AOE 13 | . 8 4 . 1 Classes Destroyed 10 | . 3 3 2 2 Worker 2 | . 2 . . . Carrier 1 | . . . 1 . Mechanic 1 | . . 1 . . Watcher 2 | . . 2 . . Swarmer 9 | . 3 3 3 . Grunt 10 | . 8 2 . . Sentry 2 | . . 2 . . Demolisher 1 | . . . 1 . Zionite 8 | . . . . 8 Mutant 1 | . . . . 1 Best Kill Streak 6 | . 5 6 3 5 Combat Bots Only 5 | . 5 4 3 1 Max Kills in Single Turn 3 | . 3 2 2 3 Gunslinging . | . . . . . Exploded 2 | . 2 2 . 1 Melee . | . . . . . Uniques/NPCs Destroyed . | . . . . . Combat | -11 -10 -9 -9 -7 -------- Run | Yrd Mat Mat Min Zio Hostile Shots Fired 217 | . 36 56 13 112 Missed 70 | . 16 12 3 39 Hits 147 | . 20 44 10 73 Melee 9 | . . . . 9 Projectile 138 | . 20 44 10 64 Critical Strikes 2 | . . . . 2 Damage Taken 2477 | . 302 677 80 1418 Core 456 | . 32 156 . 268 Absorbed by Shields . | . . . . . Redirected to Shielding 53 | . 6 47 . . Ignored by Resistances 26 | . . . . 26 Regen/Repaired (Parts) 38 | . 38 . . . Core Remaining (%) 93 | 100 87 . . . Volleys Fired 62 | . 15 25 5 17 Largest 3 | . 2 3 3 3 Hottest 237 | . 90 189 180 237 Shots Fired 142 | . 29 53 13 47 Gun 93 | . 18 47 . 28 Cannon 13 | . . . 13 . Launcher 36 | . 11 6 . 19 Special . | . . . . . Kinetic 1 | . . 1 . . Thermal 94 | . 7 46 13 28 Explosive 36 | . 11 6 . 19 Electromagnetic 11 | . 11 . . . Robot Hit Streak 8 | . 8 7 2 5 Robot Miss Streak 10 | . 3 10 2 5 Penetration Max . | . . . . . Secondary Targets 3 | . . 1 . 2 Max Gunslinging Chain 1 | . . 1 . 1 Shots Hit Robots 64 | . 17 27 5 15 Core Hits 51 | . 18 13 6 14 Critical Kills 1 | . . . 1 . Critical Parts Destroyed . | . . . . . Critical Strikes 6 | . 2 1 1 2 Burn 4 | . 1 1 . 2 Meltdown 1 | . . . 1 . Corrupt 1 | . 1 . . . Melee Attacks . | . . . . . Impact . | . . . . . Slashing . | . . . . . Piercing . | . . . . . Sneak Attacks . | . . . . . Combat Hostiles . | . . . . . Follow-up Attacks . | . . . . . Damage Inflicted 2337 | . 888 643 110 696 Guns 739 | . 187 354 . 198 Cannons 104 | . . . 104 . Explosions 1488 | . 701 289 . 498 Melee . | . . . . . Ramming 6 | . . . 6 . Kinetic 18 | . . 18 . . Thermal 795 | . 157 336 104 198 Explosive 1405 | . 618 289 . 498 Electromagnetic 113 | . 113 . . . Impact . | . . . . . Slashing . | . . . . . Piercing . | . . . . . Highest Corruption 2 | . . . . 2 Average Corruption 2 | . . . . 2 Corruption Purged . | . . . . . Corruption Blocked . | . . . . . Effects 1 | . . . . 1 Matter Fused 1 | . . . . 1 Overload Shots . | . . . . . Overflow Damage 102 | . 26 26 . 50 Projectiles . | . . . . . Explosions 102 | . 26 26 . 50 Melee . | . . . . . Knockbacks . | . . . . . Impact . | . . . . . Kinetic . | . . . . . Secondary . | . . . . . Self-Inflicted Damage 591 | . 101 225 . 265 Shots 17 | . 4 4 . 9 Rammed . | . . . . . Targets Rammed 2 | . . . 2 . Kicked 2 | . . . 2 . Crushed . | . . . . . Highest Temperature 553 | . 200 457 243 553 Average Temperature 140 | . 81 168 127 132 Received Heat Transfer 460 | . 78 90 . 292 Effects 15 | . . 8 2 5 Shutdowns 1 | . . . . 1 Energy Bleed 3 | . . . 1 2 Interference 2 | . . 1 1 . Short Circuit 2 | . . 2 . . Damage (minor) 1 | . . 1 . . Damage (major) 6 | . . 4 . 2 Siege Activations . | . . . . . Martial Activations . | . . . . . Shielding Activations . | . . . . . Robots Disrupted . | . . . . . Combat Hostiles . | . . . . . Robots Corrupted . | . . . . . Combat Hostiles . | . . . . . Parts Fried . | . . . . . Impact Corruptions . | . . . . . Robots Melted 2 | . . . 2 . Combat Hostiles 1 | . . . 1 . Parts Melted 7 | . . 2 5 . Heat Transferred 2037 | . 446 888 222 481 Parts Sabotaged . | . . . . . Parts Stolen . | . . . . . Parts Stripped . | . . . . . Power Chain Reactions 1 | . 1 . . . Alert | -11 -10 -9 -9 -7 ------- Run | Yrd Mat Mat Min Zio Maximum Alert Level 1 | . 1 . . . Low Security (%) 86 | 100 69 100 100 . Level 1 13 | . 30 . . . Level 2 . | . . . . . Level 3 . | . . . . . Level 4 . | . . . . . Level 5 . | . . . . . High Security . | . . . . . Max Security . | . . . . . Peak Influence 234 | . 234 194 94 . Initial 78 | . . 78 54 . Average 87 | . 92 113 63 . Influence Increases 787 | . 356 301 130 . Destroy 0b10 Robot/C 460 | . 220 140 100 . Destroy 0b10 Robot/NC 25 | . 10 15 . . Destroy Leader 114 | . 40 44 30 . Successful Hack 5 | . 5 . . . Disable Machine 60 | . 15 45 . . Destroy Structure 93 | . 36 57 . . Lose Combat Pursuer 30 | . 30 . . . Influence Decreases 787 | . 170 348 205 64 Entered New Map 257 | . . 108 85 64 Time Decay 460 | . 160 180 120 . Lost Part 52 | . 10 42 . . Purge Threat 18 | . . 18 . . Squads Dispatched 6 | . 5 1 . . Investigation 1 | . 1 . . . Extermination . | . . . . . Reinforcement 5 | . 4 1 . . Assault . | . . . . . Garrison . | . . . . . Intercept . | . . . . . Searches Triggered . | . . . . . Construction Impeded . | . . . . . Haulers Reinforced . | . . . . . Active Scanning Responses . | . . . . . Cargo Convoy Interrupts . | . . . . . Stealth | -11 -10 -9 -9 -7 --------- Run | Yrd Mat Mat Min Zio Distress Signals 2 | . 2 . . . Communications Jammed . | . . . . . Distress Signals . | . . . . . Times Spotted 55 | . 17 12 4 22 Peak Tracking Total 15 | . 5 4 3 15 Tactical Retreats 2 | . 1 . . 1 Traps | -11 -10 -9 -9 -7 ------- Run | Yrd Mat Mat Min Zio Traps Triggered 2 | . 2 . . . Indirectly . | . . . . . Trap Hack Attempts . | . . . . . Triggered . | . . . . . Disarmed . | . . . . . Reprogrammed . | . . . . . Reused . | . . . . . Traps Extracted . | . . . . . Installed . | . . . . . Triggered . | . . . . . Machines | -11 -10 -9 -9 -7 ---------- Run | Yrd Mat Mat Min Zio Machines Disabled 5 | . 1 3 . 1 Max in Single Turn 2 | . 1 2 . 1 Machines Repaired . | . . . . . Machines Dismantled . | . . . . . Machines Sabotaged . | . . . . . Overloaded Fab Kills . | . . . . . Hacking | -11 -10 -9 -9 -7 --------- Run | Yrd Mat Mat Min Zio Machines Accessed 4 | . 2 2 . . Terminals 3 | . 1 2 . . Fabricators . | . . . . . Repair Stations 1 | . 1 . . . Recycling Units . | . . . . . Scanalyzers . | . . . . . Garrison Access . | . . . . . Total Hacks 12 | . 8 4 . . Successful 9 | . 5 4 . . Failed 3 | . 3 . . . Catastrophic . | . . . . . Database Lockouts . | . . . . . Manual . | . . . . . Terminals 5 | . 1 4 . . Fabricators . | . . . . . Repair Stations 7 | . 7 . . . Recycling Units . | . . . . . Scanalyzers . | . . . . . Garrison Access . | . . . . . Terminal Hacks 5 | . 1 4 . . Record 3 | . . 3 . . Alert Level 1 | . 1 . . . Unreport Threat 1 | . . 1 . . Fabricator Hacks . | . . . . . Repair Station Hacks 4 | . 4 . . . Scan Component 2 | . 2 . . . Repair 2 | . 2 . . . Recycling Unit Hacks . | . . . . . Scanalyzer . | . . . . . Garrison Access Hacks . | . . . . . Unauthorized Hacks . | . . . . . Terminals . | . . . . . Fabricators . | . . . . . Repair Stations . | . . . . . Recycling Units . | . . . . . Scanalyzers . | . . . . . Garrison Access . | . . . . . Data Cores Recovered . | . . . . . Used . | . . . . . Hacking Detections 2 | . 2 . . . Full Trace Events 1 | . 1 . . . Feedback Events . | . . . . . Feedback Blocked . | . . . . . Robot Schematics Acquired 3 | . . . . 3 Robots Built . | . . . . . Authchips . | . . . . . Time . | . . . . . Total Robot Build Rating . | . . . . . Part Schematics Acquired 15 | . . . . 15 Parts Built . | . . . . . Authchips . | . . . . . Time . | . . . . . Total Part Build Rating . | . . . . . Parts Repaired 2 | . 2 . . . Time 52 | . 52 . . . Parts Recycled . | . . . . . Recycled Matter . | . . . . . Retrieved Matter . | . . . . . Retrieved Components . | . . . . . Parts Scanalyzed . | . . . . . Part Schematics Acquired . | . . . . . Parts Damaged . | . . . . . Bothacking | -11 -10 -9 -9 -7 ------------ Run | Yrd Mat Mat Min Zio Used RIF Installer . | . . . . . Robots Hacked . | . . . . . Non-combat . | . . . . . Combat . | . . . . . Robot Hacks Applied . | . . . . . Relay Couplers Released . | . . . . . Fabnet Peak Effective % . | . . . . . Robots Rewired . | . . . . . Allies Hacked . | . . . . . Hacks Repelled . | . . . . . Allies | -11 -10 -9 -9 -7 -------- Run | Yrd Mat Mat Min Zio Total Allies . | . . . . . Largest Group . | . . . . . Highest-Rated Group . | . . . . . Highest-Rated Ally . | . . . . . Total Orders . | . . . . . Ally Attacks . | . . . . . Total Damage . | . . . . . Kills . | . . . . . Allies Corrupted . | . . . . . Allies Melted . | . . . . . Intel | -11 -10 -9 -9 -7 ------- Run | Yrd Mat Mat Min Zio Active Infowar (turns) 221 | . 62 159 . . Sensors 62 | . 62 . . . Traps 159 | . . 159 . . Robot Analysis Total . | . . . . . Derelict Logs Recovered 1 | . . . . 1 Drone Launches . | . . . . . Drone Recoveries . | . . . . . Exploration | -11 -10 -9 -9 -7 ------------- Run | Yrd Mat Mat Min Zio Turns Passed 2721 | 83 586 389 245 1418 Spaces Moved 1752 | 50 316 197 167 1022 Core 11 | 11 . . . . Treads 361 | 39 316 6 . . Legs 1380 | . . 191 167 1022 Wheels . | . . . . . Hover . | . . . . . Flight . | . . . . . Fastest Speed 50 | 50 160 130 130 130 Average Speed 135 | 135 160 131 130 130 Slowest Speed 200 | 160 160 200 130 130 Overloaded Moves . | . . . . . Propulsion Burnouts . | . . . . . Robots Hopped . | . . . . . Potential Cave-ins 1 | . . . . 1 Cave-ins Triggered . | . . . . . Exploration Rate (%) 37 | 5 54 22 32 76 Regions Visited 4 Branch Regions 2 Pre-discovered Areas . | . . . . . Known Exits Taken . | . . . . . Unknown Exits Taken 4 | 1 1 1 1 . Scrap Searched . | . . . . . Spaces Dug 32 | . . . . 32 Terrain Destroyed 148 | . 45 56 . 47 Melee . | . . . . . Projectile 1 | . . . . 1 AOE 147 | . 45 56 . 46 Terrain Rammed . | . . . . . Walls Destroyed . | . . . . . Machines Disabled . | . . . . . Actions | -11 -10 -9 -9 -7 --------- Run | Yrd Mat Mat Min Zio Total 1972 | 65 367 283 184 1073 Wait 24 | . . 18 . 6 Move 1748 | 49 315 196 166 1022 Hop . | . . . . . Pick Up 41 | 8 10 15 4 4 Fast Attach 12 | 2 4 1 . 5 Attach 26 | 5 6 12 2 1 Detach 6 | 1 . 1 1 3 Swap 22 | . 9 4 2 7 Drop 29 | . 8 11 2 8 Fire 62 | . 15 25 5 17 Melee . | . . . . . Ram . | . . . . . Kick 2 | . . . 2 . Crush . | . . . . . Escape Stasis . | . . . . . Rewire . | . . . . . Trap . | . . . . . Miscellaneous . | . . . . . Route ------- -11/Scrapyard -10/Materials (discovered 2 exits: *Mat / [*Min]) -9/Materials -9/Mines (discovered 2 exits: [*Mat] / *Zio) -7/Zion History --------- Turn | Location | Event 6 | -11/Scrapyard | Discovered new exit (range 15) 84 | -11/Scrapyard | Entered Materials 85 | -10/Materials | Met a group of wandering Federalists 107 | -10/Materials | Discovered new exit (range 16) 316 | -10/Materials | Discovered new exit (range 9) 317 | -10/Materials | Build established: Mutant 495 | -10/Materials | Repaired Grenade Launcher 521 | -10/Materials | Repaired Grenade Launcher 670 | -10/Materials | Entered another Materials area 670 | -9/Materials | Evolved 2 slots: Utility x1, Weapon x1 868 | -9/Materials | Lost 3 parts (1p1u1w) 1047 | -9/Materials | Discovered new exit (range 7) 1059 | -9/Materials | Entered Mines 1134 | -9/Mines | Discovered new exit (range 7) 1221 | -9/Mines | Assembled infested the area 1226 | -9/Mines | Assisted by a Guerilla fighting off Assembled 1300 | -9/Mines | A Derelict revealed a hidden shortcut to a safe place 1304 | -9/Mines | Entered Zion 1544 | -7/Zion | Build established: Scavenger-Tank 1598 | -7/Zion | Learned Factory repair station intel 1659 | -7/Zion | Learned Factory fabricator intel 1874 | -7/Zion | Given A8's code to call for help 1966 | -7/Zion | Learned 4 Factory zone layouts 2284 | -7/Zion | Found CR-A16's Pointy Stick 2547 | -7/Zion | Attacked by Zionites 2637 | -7/Zion | Core integrity fell below 50% 2710 | -7/Zion | Core integrity fell below 20% 2722 | -7/Zion | Destroyed by HT-Q39(z) with Makeshift Axe Last Messages --------------- Machinery. Knocked back. System corrupted: Matter fused (-5). Hvy. Missile Launcher destroyed. Mak. Kinetic Plating destroyed. ZK-Y1Y(z) pulls a Mak. Sword out of the Twisted Machinery. Titanium Leg destroyed. Critical hit (Burn: +37). P3-RTG(z) heat short circuits Nuclear Core. ZB-AO8(z) destroyed. Critical hit (Burn: +37). Hvy. Beamcaster destroyed. Y5-UP3(z) destroyed. Imp. Titanium Leg destroyed. P3-RTG(z) heat damages core (-3). C2-FUU(z) heat short circuits Mak. Leg. C2-FUU(z) overheating. C2-FUU(z) heat damages Mak. Leg, Mak. Laser. C2-FUU(z) overheating. Map ----- +----------------------------------------------------+ | ?## ##" == """"""""###""" | | ##" # " " """"""""""#" | | "" """" """#" """ """ | | ## =/ "" """" """"""""" | | ?" / """ ""##"""""# | | ?# * "#"" """""""" "" | | ## " " """" "#"" | | " ""#" " """"" | | " = = """ "" """" " | | # = """ "" " " "" """ "" | | """ " """ """ """ | | ## #"" " """" "" """ | | # # ##" " """ """ | | #####"" " | | ##??#"" """"""% " | | ###???#"""""""#" " | | ????###"#"""""#"" " #"" """" " | | ????#"" "" """""" zz" """""""""" "" | | ????#" ] """"" !zz z """"#"#"""""" "" | | ????#"" !%= ""##"""#""" "" | | ????### "" c z z """#####"""" """ " | | ??????# "" """ """"#????##"#""""" "" | | ??????## """ """ z """"##????##""""""""" | | ???????#" """""" " z """"#??????###"""##" | | ???????#"" """" "lz ""#?????????###??# | | ???????###"""""" " @ ""#??????????????? | | ??????#?#"""""" "" ""##??????????????? | | ??????#"#"""" """ ""#???????????????? | | ??????#""""" """" ""#???????????????? | | ?????##" """" """ ""#???????????????? | | ?????#"" """" """"""#???????????????? | | ?????#"" """ """""##???????????????? | | ?????#""""" """###????????????????? | | ???????#"""" """???????????????????? | | ???????##""" """ ""#???????????????????? | | ????????#""" "$" ""##??????????????????? | | ????????#"" """ " """##?????????????????? | | ??????###" """ """#?????????????????? | | ?????##""" """ """?????????????????? | | ?????#""" """ ""#?????????????????? | | """""##" """ ""#?????????????????? | | """" " ""#?????????????????? | | ""##"""" ""#?????????????????? | | ""#"""" "#??????########??### | | """""" """"" ""#????###""##""#??"#" | | """##""" "" ""######""""""""####"" | | ??????##"" ""#"#"##"" """""""" | | ???????#"" """ """"""#"#" """ | | ??????##""" """""" """""" | | ??????#"""" ""#"""" """ | +----------------------------------------------------+ Best States ------------- Heat Dissipation 39 Energy Generation 14 Energy Capacity 250 Matter Stores 500 Matter Capacity 500 Sight Range 16 Robot Scan Range 14 Terrain Scan Density 10 Armor Coverage 300 Resistance: KI 10 Weapon Shielding 33 Evasion (%) 55 Recoil Reduction 2 Item Schematics ----------------- Thermic Laser | -7/Zion | Archive Gatling Laser | -7/Zion | Archive Adv. System Shield | -7/Zion | Archive Hvy. Laser | -7/Zion | Archive Hvy. Flak Cannon | -7/Zion | Archive Transmission Jammer | -7/Zion | Archive Cloaking Device | -7/Zion | Archive Matter Filter | -7/Zion | Archive Adv. Sensor Array | -7/Zion | Archive Gauss Cannon | -7/Zion | Archive Hyp. Gauss Rifle | -7/Zion | Archive Imp. Actuator Array | -7/Zion | Archive Imp. Weapon Cycler | -7/Zion | Archive Imp. Deuterium Engine | -7/Zion | Archive Greatsword | -7/Zion | Archive Robot Schematics ------------------ R-06 Scavenger | -7/Zion | Archive S-27 Virus | -7/Zion | Archive B-48 Gladiator | -7/Zion | Archive Fabricated ------------ Nothing Repaired ---------- Grenade Launcher | 36% | -10/Materials Alien Tech Used ----------------- None Achievements -------------- Everything Is Under Control Preemptive Strike Robot Respite Challenges ------------ None Game ------ Seed IonicHybridJetlance Manual? 0 Play Time 00:52:23 Cumulative 6.1 hours Start 2025.08.19 @ 13:44:05 End 2025.08.19 @ 18:11:52 Sessions 1 Manual Loads 0 Difficulty Rogue Special Mode None Game No. 4 Rogue 2 Adventurer 2 Explorer 0 Win Type - Total 0 Types 0/0/0/0/0/0/0/0/0/0 Lore% 3 Gallery% 6 Achievement% 9 Wizard Run 0 Options --------- Layout 1 ASCII 0 Keyboard 0 Movement Mouse Keybinds 0 Fullscreen 1 Font 16/SmallcapsGlow Map View 50x40 Zoom Use 0% Tactical HUD 0 Map Filters NONE Filters NONE Steam SD RUN: 0da92d77-9c8f-451d-b5e1-08482937b57c